Cogmind - Beta 11 X8 @@@ ROGUE MODE // 2021.11.03 @ 23:51:34 Player: Runia Result: Destroyed by 1C-UTU with 1C-UTU's Sword "Lootmaker" Performance ------------- Evolutions (1) 500 Regions Visited (6) 1200 Robots Destroyed (85) 425 Value Destroyed (1840) 1840 Prototype IDs (14) 280 Alien Tech Used (0) 0 Bonus (-1179) -1179 TOTAL SCORE: 3066 Bonus ------- High Alert Combat Kills 8 Friendly Fire -1187 Cogmind --------- Core Integrity 0/400 Matter 270/300 Energy 170/170 System Corruption 1% Temperature Cool (0) Movement Hovering (80) Location -8/Mines Parts ------- > --- POWER (1) -------- Makeshift Power Source > --- PROPULSION (2) --- Combat Antigrav System > --- UTILITY (4) ------ Experimental Targeting Computer > --- WEAPON (2) ------- 8R-AWN's Boregun > --- INVENTORY (5) ---- Cooled Ion Engine Reinforced Fission Core Improved Target Analyzer Hardened Light Armor Plating Mini Grenade Launcher Peak State ------------ > --- POWER ------------ Makeshift Power Source > --- PROPULSION ------- Makeshift Leg Advanced Myomer Leg > --- UTILITY ---------- Large Storage Unit Experimental Targeting Computer 8R-AWN's Armor/EX > --- WEAPON ----------- Improved Assault Rifle 8R-AWN's Boregun > --- INVENTORY -------- Cooled Ion Engine Reinforced Fission Core Combat Antigrav System YI-UF0's Bottomless Matter Pit Experimental Sensor Array Improved Target Analyzer Makeshift Transmission Jammer Hardened Light Armor Plating Improved Trap Extractor Improved Assault Rifle Improved Assault Rifle Improved Assault Rifle Mini Grenade Launcher Missile Launcher [Rating: 62] Favorites ----------- Power Improved Ion Engine Engine Improved Ion Engine Propulsion Light Treads Treads Light Treads Leg Improved Aluminum Leg Hover Unit Combat Antigrav System Utility Large Storage Unit Device Structural Scanner Storage Large Storage Unit Processor Armor Integrity Analyzer Hackware Hacking Suite Protection Hardened Light Armor Plating Weapon Improved Assault Rifle Energy Gun Medium Laser Ballistic Gun Improved Assault Rifle Launcher Missile Launcher Special Weapon Plasma Cutter Special Melee Weapon Datajack Build | -11 -10 -10 -9 -9 -9 -8 ------- Run | Scr Mat Min Mat Min Exi Min Slots Evolved 2 | . . . 2 . . . Power . | . . . . . . . Propulsion . | . . . . . . . Utility 2 | . . . 2 . . . Weapon . | . . . . . . . Parts Attached 98 | 2 12 5 43 2 31 3 Power 8 | . 1 1 5 . 1 . Engine 8 | . 1 1 5 . 1 . Core . | . . . . . . . Reactor . | . . . . . . . Propulsion 20 | 2 2 . 7 1 7 1 Treads 13 | 2 . . 6 1 4 . Leg 6 | . 2 . 1 . 3 . Wheel . | . . . . . . . Hover 1 | . . . . . . 1 Flight . | . . . . . . . Utility 27 | . 2 1 15 . 8 1 Device 9 | . 1 . 6 . 2 . Storage 4 | . 1 1 1 . 1 . Processor 2 | . . . 1 . 1 . Hackware 1 | . . . 1 . . . Protection 11 | . . . 6 . 4 1 Artifact . | . . . . . . . Weapon 43 | . 7 3 16 1 15 1 Energy Gun 3 | . 1 1 1 . . . Energy Cannon . | . . . . . . . Ballistic Gun 29 | . 4 2 10 1 11 1 Ballistic Cannon . | . . . . . . . Launcher 8 | . . . 5 . 3 . Special Weapon 1 | . . . . . 1 . Impact Weapon . | . . . . . . . Slashing Weapon . | . . . . . . . Piercing Weapon . | . . . . . . . Special Melee Weapon 2 | . 2 . . . . . Unidentified Prototypes 6 | . . 1 . . 5 . Corrupted Parts 1 | . . 1 . . . . System Corruption 6 | . . 6 . . . . Parts Lost 14 | . 1 . 7 . 6 . Power . | . . . . . . . Propulsion 5 | . 1 . 2 . 2 . Utility 6 | . . . 4 . 2 . Weapon 3 | . . . 1 . 2 . Highest Loss Streak 3 | . 1 . 2 . 3 . Average Slot Usage (%) 95 | . 94 100 97 100 95 58 Engine 11 | . 14 14 11 11 11 11 Treads 15 | . 23 . 15 22 19 . Leg 7 | . 4 28 5 . 2 7 Device 7 | . 8 14 14 . . . Storage 11 | . 14 14 12 11 11 3 Processor 4 | . . . 1 11 6 11 Protection 11 | . . . 11 22 22 3 Energy Gun 4 | . 2 16 6 . . . Ballistic Gun 18 | . 23 11 15 22 20 14 Naked Turns . | . . . . . . . Heaviest Build 57 | 11 29 40 43 43 49 57 Greatest Support 50 | 40 40 26 40 48 50 50 Greatest Overweight (x) 1 | . 1 1 1 1 1 1 Average Overweight (x) . | . . 1 . . . . Largest Inventory Capacity 15 | 8 15 15 15 15 15 15 Average Capacity 14 | 8 11 15 15 15 15 8 Most Carried 15 | 5 12 15 15 15 15 15 Average Carried 12 | 4 7 13 14 14 13 8 Final Capacity 15 | 8 15 15 15 15 15 5 Final Carried 15 | 2 9 15 15 15 15 5 Class Distribution -------------------- 66% | Mutant 33% | Scavenger-Mutant Dominant Class ---------------- Mutant | -10/Materials Mutant | -10/Mines Scavenger-Mutant | -9/Materials Mutant | -9/Mines Mutant | -9/Exiles Scavenger-Mutant | -8/Mines Resources | -11 -10 -10 -9 -9 -9 -8 ----------- Run | Scr Mat Min Mat Min Exi Min Matter Collected 4590 | 183 283 282 1204 587 1896 155 Remotely . | . . . . . . . Salvage Created 3043 | . 443 325 1394 256 530 95 Parts 210 | . 29 19 77 15 67 3 Haulers Intercepted 5 | . . . 5 . . . Recyclers Shooed 2 | . . . 1 1 . . Parts Field Recycled . | . . . . . . . Retrieved Matter . | . . . . . . . Parts Self-Destructed . | . . . . . . . Prevented . | . . . . . . . Kills | -11 -10 -10 -9 -9 -9 -8 ------- Run | Scr Mat Min Mat Min Exi Min Combat Hostiles Destroyed 56 | . 13 4 28 6 3 2 Guns 41 | . 13 3 18 5 1 1 AOE 13 | . . . 9 1 2 1 Classes Destroyed 15 | . 5 1 6 . 3 . Worker 6 | . . 5 1 . . . Builder 3 | . 1 . 1 1 . . Hauler 5 | . . . 5 . . . Recycler 1 | . . . 1 . . . Mechanic 1 | . . . 1 . . . Operator 1 | . 1 . . . . . Turret 1 | . . . . . 1 . Watcher 3 | . 1 . 2 . . . Swarmer 16 | . 6 3 7 . . . Grunt 27 | . 7 1 11 6 . 2 Brawler 1 | . . . 1 . . . Duelist 1 | . . . 1 . . . Sentry 8 | . . . 8 . . . Zionite 7 | . . . . . 7 . Assembled 2 | . . . . . 2 . Best Kill Streak 8 | . 4 3 8 3 2 2 Combat Bots Only 7 | . 4 3 7 3 2 2 Max Kills in Single Turn 3 | . 1 2 3 2 2 1 Gunslinging 1 | . . 1 . 1 . . Exploded 3 | . . . 3 1 2 1 Melee . | . . . . . . . Uniques/NPCs Destroyed 5 | . . 1 . . 4 . YI-UF0 (-10/Mines) 8R-AWN (-9/Exiles) EX-HEX (-9/Exiles) EX-BIN (-9/Exiles) EX-DEC (-9/Exiles) Combat | -11 -10 -10 -9 -9 -9 -8 -------- Run | Scr Mat Min Mat Min Exi Min Damage Taken 3372 | . 498 71 1153 234 1262 154 Core 457 | . 48 7 124 30 199 49 Absorbed by Shields . | . . . . . . . Core Remaining (%) 89 | 100 . 78 . . . . Volleys Fired 293 | . 47 35 96 15 85 15 Largest 2 | . 2 2 2 2 2 2 Hottest 90 | . 50 90 79 46 53 53 Shots Fired 530 | . 83 63 185 28 155 16 Gun 505 | . 83 63 178 26 141 14 Cannon . | . . . . . . . Launcher 24 | . . . 7 2 13 2 Special 1 | . . . . . 1 . Kinetic 370 | . 81 14 94 26 141 14 Thermal 122 | . 2 35 84 . 1 . Explosive 24 | . . . 7 2 13 2 Electromagnetic 14 | . . 14 . . . . Robot Hit Streak 29 | . 18 8 17 13 29 8 Robot Miss Streak 8 | . 8 5 3 1 4 4 Penetration Max 1 | . . . . . 1 . Secondary Targets 7 | . 1 2 3 1 . . Max Gunslinging Chain 1 | . 1 1 1 1 . . Shots Hit Robots 354 | . 53 38 129 20 103 11 Core Hits 165 | . 28 16 59 12 42 8 Critical Kills 2 | . . . . . 2 . Critical Parts Destroyed 9 | . . . 1 . 5 3 Critical Strikes 25 | . . 3 10 . 9 3 Burn 12 | . . 3 9 . . . Destroy 13 | . . . 1 . 9 3 Melee Attacks 3 | . 3 . . . . . Impact . | . . . . . . . Slashing . | . . . . . . . Piercing . | . . . . . . . Sneak Attacks 3 | . 3 . . . . . Combat Hostiles 1 | . 1 . . . . . Follow-up Attacks . | . . . . . . . Damage Inflicted 6676 | . 518 440 2683 492 2176 367 Guns 4908 | . 518 440 1801 316 1666 167 Cannons . | . . . . . . . Explosions 1768 | . . . 882 176 510 200 Melee . | . . . . . . . Ramming . | . . . . . . . Kinetic 3743 | . 505 95 994 316 1666 167 Thermal 1156 | . 13 252 891 . . . Explosive 1684 | . . . 798 176 510 200 Electromagnetic 93 | . . 93 . . . . Impact . | . . . . . . . Slashing . | . . . . . . . Piercing . | . . . . . . . Highest Corruption 6 | . . 6 1 1 1 1 Average Corruption 1 | . . 6 1 1 1 1 Corruption Purged . | . . . . . . . Effects 18 | . . . 3 4 8 3 Message Errors 9 | . . . 2 2 4 1 Energy Discharges 4 | . . . 1 1 1 1 Data Loss (minor) 4 | . . . . 1 2 1 Weapon Failures 1 | . . . . . 1 . Overload Shots . | . . . . . . . Overflow Damage 66 | . 7 . 37 . 22 . Projectiles . | . . . . . . . Explosions 66 | . 7 . 37 . 22 . Melee . | . . . . . . . Knockbacks . | . . . . . . . Impact . | . . . . . . . Kinetic . | . . . . . . . Secondary . | . . . . . . . Self-Inflicted Damage 295 | . 150 . 23 33 36 53 Shots 7 | . 2 . 1 1 1 2 Rammed . | . . . . . . . Targets Rammed . | . . . . . . . Kicked . | . . . . . . . Crushed . | . . . . . . . Highest Temperature 240 | . 27 240 90 60 198 26 Average Temperature 43 | . 7 58 27 26 50 15 Received Heat Transfer 645 | . 126 12 372 108 . 27 Siege Activations . | . . . . . . . Robots Corrupted . | . . . . . . . Combat Hostiles . | . . . . . . . Parts Fried 1 | . . 1 . . . . Impact Corruptions . | . . . . . . . Robots Melted 2 | . . 1 1 . . . Combat Hostiles 2 | . . 1 1 . . . Parts Melted 13 | . . 1 12 . . . Heat Transferred 3824 | . 37 962 2825 . . . Parts Sabotaged . | . . . . . . . Parts Stolen . | . . . . . . . Parts Stripped . | . . . . . . . Power Chain Reactions . | . . . . . . . Missiles Intercepted . | . . . . . . . Alert | -11 -10 -10 -9 -9 -9 -8 ------- Run | Scr Mat Min Mat Min Exi Min Peak Influence 443 | . 270 82 443 244 . 90 Initial 74 | . . 42 3 74 . . Average 123 | . 89 42 224 81 . 87 Maximum Alert Level 2 | . 1 . 2 1 . . Low Security (%) 75 | 100 90 100 44 80 . 100 Level 1 23 | . 9 . 51 19 . . Level 2 1 | . . . 3 . . . Level 3 . | . . . . . . . Level 4 . | . . . . . . . Level 5 . | . . . . . . . High Security . | . . . . . . . Max Security . | . . . . . . . Squads Dispatched 6 | . 3 . 2 1 . . Investigation 2 | . 2 . . . . . Extermination . | . . . . . . . Reinforcement 4 | . 1 . 2 1 . . Assault . | . . . . . . . Garrison . | . . . . . . . Intercept . | . . . . . . . Construction Impeded 1 | . . . . 1 . . Haulers Reinforced . | . . . . . . . Active Scanning Responses . | . . . . . . . Cargo Convoy Interrupts . | . . . . . . . Stealth | -11 -10 -10 -9 -9 -9 -8 --------- Run | Scr Mat Min Mat Min Exi Min Distress Signals 3 | . 2 . 1 . . . Communications Jammed . | . . . . . . . Distress Signals . | . . . . . . . Times Spotted 127 | . 22 6 52 6 37 4 Peak Tracking Total 12 | . 4 3 7 3 12 4 Tactical Retreats 17 | . 1 1 1 . 14 . Traps | -11 -10 -10 -9 -9 -9 -8 ------- Run | Scr Mat Min Mat Min Exi Min Traps Triggered 2 | . 1 . . 1 . . Indirectly . | . . . . . . . Trap Hack Attempts 37 | . 37 . . . . . Triggered . | . . . . . . . Disarmed 1 | . 1 . . . . . Reprogrammed 2 | . 2 . . . . . Reused . | . . . . . . . Traps Extracted . | . . . . . . . Installed . | . . . . . . . Triggered . | . . . . . . . Exploded 3 | . . . . . 3 . Machines | -11 -10 -10 -9 -9 -9 -8 ---------- Run | Scr Mat Min Mat Min Exi Min Machines Disabled 18 | . 2 . 3 . 13 . Max in Single Turn 3 | . 2 . 3 . 2 . Machines Sabotaged . | . . . . . . . Garrisons Compromised . | . . . . . . . Overloaded Fab Kills . | . . . . . . . Hacking | -11 -10 -10 -9 -9 -9 -8 --------- Run | Scr Mat Min Mat Min Exi Min Machines Accessed 15 | . 7 . 6 1 1 . Terminals 11 | . 5 . 6 . . . Fabricators . | . . . . . . . Repair Stations . | . . . . . . . Recycling Units 2 | . 2 . . . . . Scanalyzers . | . . . . . . . Garrison Access . | . . . . . . . Total Hacks 45 | . 19 . 24 1 1 . Successful 22 | . 9 . 11 1 1 . Failed 23 | . 10 . 13 . . . Catastrophic 2 | . 1 . 1 . . . Database Lockouts . | . . . . . . . Manual 12 | . 8 . 4 . . . Terminals 41 | . 17 . 24 . . . Fabricators . | . . . . . . . Repair Stations . | . . . . . . . Recycling Units 2 | . 2 . . . . . Scanalyzers . | . . . . . . . Garrison Access . | . . . . . . . Terminal Hacks 20 | . 7 . 11 1 1 . Record 1 | . . . . . 1 . Part Schematic 1 | . . . 1 . . . Robot Analysis 1 | . . . 1 . . . Prototype ID Bank 4 | . 2 . 2 . . . Open Door 1 | . . . . 1 . . Branch Access Points 1 | . . . 1 . . . Unreport Threat 3 | . 1 . 2 . . . Locate Traps 4 | . 3 . 1 . . . Hauler Manifests 1 | . . . 1 . . . Registered Components 1 | . 1 . . . . . Zone Layout 2 | . . . 2 . . . Fabricator Hacks . | . . . . . . . Repair Station Hacks . | . . . . . . . Recycling Unit Hacks . | . . . . . . . Scanalyzer . | . . . . . . . Garrison Access Hacks . | . . . . . . . Unauthorized Hacks 2 | . 2 . . . . . Terminals . | . . . . . . . Fabricators . | . . . . . . . Repair Stations . | . . . . . . . Recycling Units 2 | . 2 . . . . . Tunnel 2 | . 2 . . . . . Scanalyzers . | . . . . . . . Garrison Access . | . . . . . . . Data Cores Recovered . | . . . . . . . Used . | . . . . . . . Hacking Detections 10 | . 4 . 6 . . . Full Trace Events . | . . . . . . . Feedback Events . | . . . . . . . Feedback Blocked . | . . . . . . . Robot Schematics Acquired . | . . . . . . . Robots Built . | . . . . . . . Authchips . | . . . . . . . Time . | . . . . . . . Total Robot Build Rating . | . . . . . . . Part Schematics Acquired 1 | . . . 1 . . . Parts Built . | . . . . . . . Authchips . | . . . . . . . Time . | . . . . . . . Total Part Build Rating . | . . . . . . . Parts Repaired . | . . . . . . . Time . | . . . . . . . Parts Recycled . | . . . . . . . Recycled Matter . | . . . . . . . Retrieved Matter . | . . . . . . . Retrieved Components . | . . . . . . . Parts Scanalyzed . | . . . . . . . Part Schematics Acquired . | . . . . . . . Parts Damaged . | . . . . . . . Bothacking | -11 -10 -10 -9 -9 -9 -8 ------------ Run | Scr Mat Min Mat Min Exi Min Used RIF Installer . | . . . . . . . Robots Hacked 1 | . 1 . . . . . Non-combat 1 | . 1 . . . . . Combat . | . . . . . . . Robot Hacks Applied 1 | . 1 . . . . . no_distress 1 | . 1 . . . . . Relay Couplers Released . | . . . . . . . Robots Rewired . | . . . . . . . Allies Hacked . | . . . . . . . Hacks Repelled . | . . . . . . . Allies | -11 -10 -10 -9 -9 -9 -8 -------- Run | Scr Mat Min Mat Min Exi Min Total Allies . | . . . . . . . Largest Group . | . . . . . . . Highest-Rated Group . | . . . . . . . Highest-Rated Ally . | . . . . . . . Total Orders . | . . . . . . . Ally Attacks . | . . . . . . . Total Damage . | . . . . . . . Kills . | . . . . . . . Allies Corrupted . | . . . . . . . Allies Melted . | . . . . . . . Intel | -11 -10 -10 -9 -9 -9 -8 ------- Run | Scr Mat Min Mat Min Exi Min Robot Analysis Total 1 | . . . 1 . . . Derelict Logs Recovered 2 | . . 1 . 1 . . Drone Launches . | . . . . . . . Drone Recoveries . | . . . . . . . Exploration | -11 -10 -10 -9 -9 -9 -8 ------------- Run | Scr Mat Min Mat Min Exi Min Turns Passed 7528 | 5 1024 1175 1946 1181 1804 393 Spaces Moved 3628 | 1 496 558 813 605 828 327 Core . | . . . . . . . Treads 2326 | 1 406 . 616 605 698 . Legs 1013 | . 90 558 197 . 130 38 Wheels . | . . . . . . . Hover 289 | . . . . . . 289 Flight . | . . . . . . . Fastest Speed 80 | 160 160 190 160 160 130 80 Average Speed 173 | 160 165 190 187 183 175 93 Slowest Speed 240 | 160 190 190 240 240 240 200 Overloaded Moves . | . . . . . . . Propulsion Burnouts . | . . . . . . . Robots Hopped . | . . . . . . . Cave-ins Triggered . | . . . . . . . Exploration Rate (%) 63 | 2 98 91 62 92 78 19 Regions Visited 6 Branch Regions 4 Pre-discovered Areas 3 | . 2 . . . 1 . Known Exits Taken 1 | . . . 1 . . . Unknown Exits Taken 5 | 1 1 1 . 1 1 . Scrap Searched 4 | . . 1 . 3 . . Spaces Dug 5 | . . . 5 . . . Terrain Destroyed 168 | . 25 . 69 20 24 30 Melee . | . . . . . . . Projectile 10 | . . . . . 3 7 AOE 158 | . 25 . 69 20 21 23 Terrain Rammed . | . . . . . . . Walls Destroyed . | . . . . . . . Machines Disabled . | . . . . . . . Actions | -11 -10 -10 -9 -9 -9 -8 --------- Run | Scr Mat Min Mat Min Exi Min Total 4365 | 6 622 613 1060 649 1016 399 Wait 166 | . 12 4 43 23 38 46 Move 3622 | . 495 557 812 604 827 327 Hop . | . . . . . . . Pick Up 65 | . 10 8 26 2 17 2 Fast Attach 16 | . 1 . 13 . 2 . Attach 20 | . 2 . 8 . 9 1 Detach 2 | . . . 1 . 1 . Swap 62 | 2 9 5 22 2 20 2 Drop 79 | 4 6 4 39 3 17 6 Fire 293 | . 47 35 96 15 85 15 Melee 3 | . 3 . . . . . Ram . | . . . . . . . Kick . | . . . . . . . Crush . | . . . . . . . Escape Stasis . | . . . . . . . Rewire . | . . . . . . . Trap 37 | . 37 . . . . . Miscellaneous . | . . . . . . . Route ------- -11/Scrapyard -10/Materials (discovered 5 exits: *Mat x3 / [*Min x2]) -10/Mines (discovered 2 exits: *Mat x2) -9/Materials (discovered 2 exits: [*Mat] / *Min) -9/Mines (discovered 3 exits: [*Mat x2] / *Exi) -9/Exiles -8/Mines (discovered 1 exit: [*Mat]) History --------- Turn | Location | Event 6 | -11/Scrapyard | Discovered new exit (range 0) 6 | -11/Scrapyard | Entered Materials 111 | -10/Materials | Discovered new exit (range 16) 254 | -10/Materials | Discovered new exit (range 12) 313 | -10/Materials | Build established: Mutant 359 | -10/Materials | Discovered new exit (range 9) 530 | -10/Materials | Discovered new exit (range 14) 748 | -10/Materials | Discovered new exit (range 15) 1030 | -10/Materials | Entered Mines 1194 | -10/Mines | Discovered new exit (range 6) 1265 | -10/Mines | YI-UF0 nonchalantly dropped a Grenade Launcher on the ground 1301 | -10/Mines | Discovered new exit (range 8) 1345 | -10/Mines | Destroyed YI-UF0 1359 | -10/Mines | Found Corrupted Prototype Storage 1388 | -10/Mines | Learned Materials trap positions 1431 | -10/Mines | Found a hidden stash of uninstalled traps 1812 | -10/Mines | Joined a pair of Derelicts in attacking an 0b10 outpost 2034 | -10/Mines | Found a damaged Exp. Sensor Array with a note attached 2038 | -10/Mines | Found Prototype Device 2204 | -10/Mines | Identified YI-UF0's Bottomless Matter Pit 2205 | -10/Mines | Entered Materials 2205 | -9/Materials | Evolved 2 slots: Utility x2 2206 | -9/Materials | Loaded intel: 26 trap records 2647 | -9/Materials | Identified exit to Mines 2888 | -9/Materials | Destroyed 7 combat bots 2927 | -9/Materials | Build established: Scavenger-Mutant 3681 | -9/Materials | Discovered new exit (range 9) 4146 | -9/Materials | Build established: Mutant 4151 | -9/Materials | Entered Mines 4533 | -9/Mines | Discovered new exit (range 13) 4566 | -9/Mines | Discovered new exit (range 6) 4618 | -9/Mines | Met a Derelict who couldn't figure out how to use a Trap Extractor 4929 | -9/Mines | Learned location of 1 exit from Lower Caves 5120 | -9/Mines | Excavation squad dispatched 5120 | -9/Mines | A large section of the Mines collapsed 5326 | -9/Mines | Deemed a non-threat by the Exiles lab entrance 5326 | -9/Mines | Discovered new exit (range 5) 5332 | -9/Mines | Entered Exiles 5372 | -9/Exiles | Met 8R-AWN 5398 | -9/Exiles | Met EX-HEX 5462 | -9/Exiles | Met EX-DEC 5468 | -9/Exiles | Learned location of Zion (-6) 5603 | -9/Exiles | Discovered new exit (range 12) 6042 | -9/Exiles | Attacked by the Exiles 6151 | -9/Exiles | Core integrity fell below 50% 6229 | -9/Exiles | Destroyed 8R-AWN 6235 | -9/Exiles | Lost 3 parts (2n1u) 6235 | -9/Exiles | Found Prototype Ballistic Gun 6244 | -9/Exiles | Found Prototype Protection 6248 | -9/Exiles | Found Prototype Processor 6265 | -9/Exiles | Identified 8R-AWN's Armor/EX 6267 | -9/Exiles | Identified 8R-AWN's Boregun 6358 | -9/Exiles | Core integrity fell below 20% 6602 | -9/Exiles | Build established: Scavenger-Mutant 6701 | -9/Exiles | Destroyed EX-HEX 6713 | -9/Exiles | Destroyed EX-BIN 6796 | -9/Exiles | Destroyed EX-DEC 6962 | -9/Exiles | Identified Exp. Targeting Computer 7136 | -9/Exiles | Entered Mines 7163 | -8/Mines | Discovered new exit (range 16) 7262 | -8/Mines | 1C-UTU came to Exiles' defense 7529 | -8/Mines | Destroyed by 1C-UTU with 1C-UTU's Sword "Lootmaker" Last Messages --------------- 07445_ K-01 Serf collects debris. 07448_ System corrupted: Energy discharge (-51). 07509_ HV Slug penetrates 1C-UTU. 07509_ 1C-UTU suffers critical hit (Destroy). 07509_ Destroyed Prototype Leg. 07515_ Acquired 6 matter. 07520_ HV Slug penetrates 1C-UTU. 07520_ HV Slug penetrates Wall. 07522_ HV Slug penetrates 1C-UTU. 07522_ HV Slug penetrates Wall. 07524_ HV Slug penetrates 1C-UTU. 07524_ 1C-UTU suffers critical hit (Destroy). 07524_ Destroyed Prototype Slashing Weapon. 07524_ HV Slug penetrates Wall. 07526_ HV Slug penetrates 1C-UTU. 07526_ HV Slug penetrates Wall. 07528_ HV Slug penetrates 1C-UTU. 07528_ 1C-UTU suffers critical hit (Destroy). 07528_ Destroyed Adv. Reaction Control System. 07528_ HV Slug penetrates Wall. Map ----- +----------------------------------------------------+ | ??????????????????????????????## ##??????????? | | ???????????????????????????????# #??????????? | | ??????????????????????????????## #??????????? | | ?????????????????????????????## ##?????????? | | ?????????????????????????????# ##????????? | | ?????????????????????????????# #????????? | | ?????????????????????????????# < #????????? | | ?????????????????????????????# ##????????? | | ?????????????????????????????# ##?????????? | | ?????????????????????????????# #??????????? | | ????????????????????????###?##= #??????????? | | ???????????????????????## ## % #??????????? | | ??????????????????????## = #??????????? | | ??????????????????????# ##?????????? | | ???????????????????# ## ## #?????????? | | ????????????????# ##?# ## #?????????? | | ???????????????# ##????# ## # ##########?? | | ???????????????? ???????# ## ####?# #?? | | ???????????????? ??????????# ## #????#= #?? | | ????????????????????????###?# ## #????#!! #?? | | ??????????????????????### ### ## %####"#[][ #?? | | ??????????????????????# # # ## [!!!=""" #?? | | ??????????????????????## #!%! ####"#!""" #?? | | ??????????????????????## # # #??###[""" #?? | | ??????????????????????# %% ## #????#! #?? | | ??????????????????????## @l% ; #########?? | | ??????????????????????# # #?????????????? | | ??????????????????????## ####?????????????? | | ???????????????????????### ##????????????????? | | ?????????????????????????######?????????????????? | | ????????????????????????????????????????????????? | | ????????????????????????????????????????????????? | | | | | | | | | | | | | | | | | | | | | | | | | | | | | | | | | | | | | +----------------------------------------------------+ Best States ------------- Heat Dissipation 52 Energy Generation 15 Energy Capacity 280 Matter Stores 500 Matter Capacity 500 Sight Range 16 Terrain Scan Density 10 Jamming Range 14 Armor Coverage 1000 Resistance: EX 90 Weapon Shielding 33 Evasion (%) 55 Targeting Accuracy 12 Armor Integrity Analysis 20 Recoil Reduction 2 Offensive Hacking 10 Item Schematics ----------------- Hcp. Storage Unit | -9/Materials | Hacked Robot Schematics ------------------ None Fabricated ------------ Nothing Alien Tech Used ----------------- None Achievements -------------- None Challenges ------------ None Game ------ Seed PointMappingSink Manual? 0 Play Time 00:47:53 Cumulative 437.4 hours Start 2021.11.03 @ 22:37:49 End 2021.11.03 @ 23:51:34 Sessions 1 Manual Loads 0 Difficulty Rogue Special Mode None Game No. 435 Rogue 435 Adventurer 0 Explorer 0 Win Type - Total 8 Types 7/0/0/1/0/0/0/0/0 Lore% 80 Gallery% 92 Achievement% 69 Wizard Run 0 Options --------- ASCII 0 Keyboard 0 Movement Mouse Keybinds 1 Fullscreen 2 Font 24/Smallcaps Map View 76x50 Tactical HUD 1 Map Filters NONE Filters NONE Steam 1 RUN: c724250c-6dfd-4d92-9346-bea80b7ab09b